Cogmind - Beta 10.1 *** ADVENTURER MODE // 2020.10.17 @ 12:29:36 Player: FauxMaasks Result: Destroyed by D-53 Grenadier with Mini Grenade Launcher Performance ------------- Evolutions (0) 0 Regions Visited (2) 400 Robots Destroyed (11) 55 Value Destroyed (158) 158 Prototype IDs (2) 40 Alien Tech Used (0) 0 Bonus (0) 0 TOTAL SCORE: 653 Bonus ------- None Cogmind --------- Core Integrity 0/250 Matter 277/300 Energy 242/250 System Corruption 0% Temperature Cool (0) Movement Core (650) Ox12 Location -10/Mines Parts ------- > --- POWER (1) -------- Ion Engine > --- PROPULSION (2) --- (None) > --- UTILITY (2) ------ Large Storage Unit Large Storage Unit > --- WEAPON (2) ------- Small Laser > --- INVENTORY (16) --- Light Treads Medium Storage Unit Medium Storage Unit Medium Matter Pod (0) Medium Matter Pod (0) Assault Rifle Assault Rifle Assault Rifle Assault Rifle Assault Rifle Assault Rifle Assault Rifle Assault Rifle Light Assault Rifle Peak State ------------ > --- POWER ------------ Ion Engine > --- PROPULSION ------- Compact Wheel Compact Wheel > --- UTILITY ---------- Large Storage Unit Large Storage Unit > --- WEAPON ----------- Small Laser Assault Rifle > --- INVENTORY -------- Light Treads Light Treads Medium Storage Unit Medium Storage Unit Medium Matter Pod Medium Matter Pod Assault Rifle Assault Rifle Assault Rifle Assault Rifle Assault Rifle Assault Rifle Assault Rifle Assault Rifle Light Assault Rifle [Rating: 8] Favorites ----------- Power Ion Engine Engine Ion Engine Propulsion Compact Wheel Treads Light Treads Wheel Compact Wheel Utility Large Storage Unit Storage Large Storage Unit Weapon Small Laser Energy Gun Small Laser Ballistic Gun Assault Rifle Build | -11 -10 -10 ------- Run | Scr Mat Min Slots Evolved . | . . . Power . | . . . Propulsion . | . . . Utility . | . . . Weapon . | . . . Parts Attached 17 | 6 9 2 Power 1 | 1 . . Engine 1 | 1 . . Core . | . . . Reactor . | . . . Propulsion 6 | 2 3 1 Treads 2 | . 1 1 Leg . | . . . Wheel 4 | 2 2 . Hover . | . . . Flight . | . . . Utility 3 | 1 2 . Device . | . . . Storage 3 | 1 2 . Processor . | . . . Hackware . | . . . Protection . | . . . Artifact . | . . . Weapon 7 | 2 4 1 Energy Gun 6 | 2 3 1 Energy Cannon . | . . . Ballistic Gun 1 | . 1 . Ballistic Cannon . | . . . Launcher . | . . . Special Weapon . | . . . Impact Weapon . | . . . Slashing Weapon . | . . . Piercing Weapon . | . . . Special Melee Weapon . | . . . Unidentified Prototypes . | . . . Parts Lost 6 | . 2 4 Power . | . . . Propulsion 4 | . 1 3 Utility . | . . . Weapon 2 | . 1 1 Highest Loss Streak 4 | . 1 4 Average Slot Usage (%) 92 | . 92 85 Engine 14 | . 14 14 Treads 2 | . 2 . Wheel 24 | . 24 23 Storage 26 | . 26 28 Energy Gun 19 | . 20 4 Ballistic Gun 4 | . 3 14 Naked Turns . | . . . Heaviest Build 40 | 12 40 40 Greatest Support 32 | 26 32 32 Greatest Overweight (x) 2 | . 2 2 Average Overweight (x) 1 | . 1 1 Largest Inventory Capacity 16 | 6 16 16 Average Capacity 14 | 5 14 16 Most Carried 16 | 3 16 16 Average Carried 8 | 1 8 15 Final Capacity 16 | 6 16 16 Final Carried 16 | 3 16 14 Class Distribution -------------------- 100% | Mutant Dominant Class ---------------- Mutant | -10/Materials Mutant | -10/Mines Resources | -11 -10 -10 ----------- Run | Scr Mat Min Matter Collected 305 | 260 45 . Remotely . | . . . Salvage Created 224 | . 224 . Parts 17 | . 17 . Haulers Intercepted . | . . . Recyclers Shooed . | . . . Parts Field Recycled . | . . . Retrieved Matter . | . . . Parts Self-Destructed . | . . . Prevented . | . . . Kills | -11 -10 -10 ------- Run | Scr Mat Min Combat Hostiles Destroyed 11 | . 11 . Guns 11 | . 11 . Classes Destroyed 2 | . 2 . Swarmer 9 | . 9 . Grunt 2 | . 2 . Best Kill Streak 3 | . 3 . Combat Bots Only 3 | . 3 . Max Kills in Single Turn 1 | . 1 . Gunslinging . | . . . Exploded . | . . . Melee . | . . . Uniques/NPCs Destroyed . | . . . Combat | -11 -10 -10 -------- Run | Scr Mat Min Damage Taken 879 | . 255 624 Core 255 | . 72 183 Absorbed by Shields . | . . . Core Remaining (%) 100 | 100 . . Volleys Fired 31 | . 28 3 Largest 2 | . 2 2 Hottest 90 | . 90 60 Shots Fired 60 | . 56 4 Gun 60 | . 56 4 Cannon . | . . . Launcher . | . . . Special . | . . . Kinetic 1 | . . 1 Thermal 59 | . 56 3 Explosive . | . . . Electromagnetic . | . . . Robot Hit Streak 13 | . 12 13 Robot Miss Streak 3 | . 3 1 Penetration Max . | . . . Secondary Targets 1 | . 1 . Max Gunslinging Chain 1 | . 1 . Shots Hit Robots 43 | . 41 2 Core Hits 15 | . 13 2 Critical Hits . | . . . Critical Kills . | . . . Critical Parts Destroyed . | . . . Melee Attacks . | . . . Impact . | . . . Slashing . | . . . Piercing . | . . . Sneak Attacks . | . . . Combat Hostiles . | . . . Follow-up Attacks . | . . . Damage Inflicted 549 | . 504 45 Guns 525 | . 504 21 Cannons . | . . . Explosions . | . . . Melee . | . . . Ramming 24 | . . 24 Kinetic . | . . . Thermal 525 | . 504 21 Explosive . | . . . Electromagnetic . | . . . Impact . | . . . Slashing . | . . . Piercing . | . . . Highest Corruption . | . . . Average Corruption . | . . . Corruption Purged . | . . . Overload Shots . | . . . Overflow Damage . | . . . Projectiles . | . . . Explosions . | . . . Melee . | . . . Knockbacks . | . . . Impact . | . . . Kinetic . | . . . Secondary . | . . . Self-Inflicted Damage 10 | . . 10 Shots . | . . . Rammed 6 | . . 6 Targets Rammed 6 | . . 6 Kicked . | . . . Crushed . | . . . Highest Temperature 180 | . 180 . Average Temperature 61 | . 61 . Received Heat Transfer 158 | . 48 110 Siege Activations . | . . . Robots Corrupted . | . . . Combat Hostiles . | . . . Parts Fried . | . . . Impact Corruptions . | . . . Robots Melted . | . . . Combat Hostiles . | . . . Parts Melted 2 | . 2 . Heat Transferred 1270 | . 1220 50 Parts Sabotaged . | . . . Parts Stolen . | . . . Parts Stripped . | . . . Power Chain Reactions . | . . . Missiles Intercepted . | . . . Alert | -11 -10 -10 ------- Run | Scr Mat Min Peak Influence 234 | . 234 15 Initial 5 | . . 5 Average 59 | . 67 6 Maximum Alert Level 1 | . 1 . Low Security (%) 90 | 100 89 100 Level 1 9 | . 10 . Level 2 . | . . . Level 3 . | . . . Level 4 . | . . . Level 5 . | . . . High Security . | . . . Max Security . | . . . Squads Dispatched 1 | . 1 . Investigation 1 | . 1 . Extermination . | . . . Reinforcement . | . . . Assault . | . . . Garrison . | . . . Intercept . | . . . Construction Impeded . | . . . Haulers Reinforced . | . . . Stealth | -11 -10 -10 --------- Run | Scr Mat Min Distress Signals 2 | . 2 . Communications Jammed . | . . . Distress Signals . | . . . Times Spotted 41 | . 16 25 Peak Tracking Total 22 | . 5 22 Tactical Retreats 1 | . 1 . Traps | -11 -10 -10 ------- Run | Scr Mat Min Traps Triggered 3 | . 3 . Indirectly . | . . . Trap Hack Attempts . | . . . Triggered . | . . . Disarmed . | . . . Reprogrammed . | . . . Reused . | . . . Traps Extracted . | . . . Installed . | . . . Triggered . | . . . Machines | -11 -10 -10 ---------- Run | Scr Mat Min Machines Disabled . | . . . Max in Single Turn . | . . . Machines Sabotaged . | . . . Garrisons Compromised . | . . . Overloaded Fab Kills . | . . . Fab Network Shutdowns . | . . . Hacking | -11 -10 -10 --------- Run | Scr Mat Min Machines Accessed 8 | . 8 . Terminals 8 | . 8 . Fabricators . | . . . Repair Stations . | . . . Recycling Units . | . . . Scanalyzers . | . . . Garrison Access . | . . . Total Hacks 23 | . 23 . Successful 15 | . 15 . Failed 8 | . 8 . Catastrophic . | . . . Database Lockouts . | . . . Manual 19 | . 19 . Terminals 23 | . 23 . Fabricators . | . . . Repair Stations . | . . . Recycling Units . | . . . Scanalyzers . | . . . Garrison Access . | . . . Terminal Hacks 9 | . 9 . Robot Analysis 2 | . 2 . Prototype ID Bank 1 | . 1 . Branch Access Points 1 | . 1 . Terminal Index 1 | . 1 . Alert Level 1 | . 1 . Unreport Threat 1 | . 1 . Maintenance Status 1 | . 1 . Recall Investigation 1 | . 1 . Fabricator Hacks . | . . . Repair Station Hacks . | . . . Recycling Unit Hacks . | . . . Scanalyzer . | . . . Garrison Access Hacks . | . . . Unauthorized Hacks 6 | . 6 . Terminals 6 | . 6 . Botnet 6 | . 6 . Fabricators . | . . . Repair Stations . | . . . Recycling Units . | . . . Scanalyzers . | . . . Garrison Access . | . . . Data Cores Recovered . | . . . Used . | . . . Hacking Detections 7 | . 7 . Full Trace Events 1 | . 1 . Feedback Events . | . . . Feedback Blocked . | . . . Robot Schematics Acquired . | . . . Robots Built . | . . . Matter . | . . . Time . | . . . Total Robot Build Rating . | . . . Part Schematics Acquired . | . . . Parts Built . | . . . Matter . | . . . Time . | . . . Total Part Build Rating . | . . . Parts Repaired . | . . . Time . | . . . Parts Recycled . | . . . Recycled Matter . | . . . Retrieved Matter . | . . . Retrieved Components . | . . . Parts Scanalyzed . | . . . Part Schematics Acquired . | . . . Parts Damaged . | . . . Bothacking | -11 -10 -10 ------------ Run | Scr Mat Min Used RIF Installer . | . . . Robots Hacked . | . . . Non-combat . | . . . Combat . | . . . Robot Hacks Applied . | . . . Relay Couplers Released . | . . . Robots Rewired . | . . . Allies Hacked . | . . . Hacks Repelled . | . . . Allies | -11 -10 -10 -------- Run | Scr Mat Min Total Allies . | . . . Largest Group . | . . . Highest-Rated Group . | . . . Highest-Rated Ally . | . . . Total Orders . | . . . Ally Attacks . | . . . Total Damage . | . . . Kills . | . . . Allies Corrupted . | . . . Allies Melted . | . . . Intel | -11 -10 -10 ------- Run | Scr Mat Min Robot Analysis Total 2 | . 2 . Derelict Logs Recovered . | . . . Drone Launches . | . . . Drone Recoveries . | . . . Exploration | -11 -10 -10 ------------- Run | Scr Mat Min Turns Passed 687 | 52 604 31 Spaces Moved 498 | 44 442 12 Core 2 | 2 . . Treads 2 | . . 2 Legs . | . . . Wheels 494 | 42 442 10 Hover . | . . . Flight . | . . . Fastest Speed 50 | 50 90 110 Average Speed 103 | 88 104 125 Slowest Speed 180 | 100 120 180 Overloaded Moves . | . . . Propulsion Burnouts . | . . . Robots Hopped . | . . . Cave-ins Triggered . | . . . Exploration Rate (%) 34 | 3 88 12 Regions Visited 2 Branch Regions 1 Pre-discovered Areas . | . . . Known Exits Taken 1 | . 1 . Unknown Exits Taken 1 | 1 . . Scrap Searched . | . . . Spaces Dug . | . . . Terrain Destroyed . | . . . Melee . | . . . Projectile . | . . . AOE . | . . . Terrain Rammed . | . . . Walls Destroyed . | . . . Machines Disabled . | . . . Actions | -11 -10 -10 --------- Run | Scr Mat Min Total 604 | 53 526 25 Wait 31 | 1 28 2 Move 496 | 43 441 12 Hop . | . . . Pick Up 17 | 3 14 . Fast Attach 10 | 6 4 . Attach 5 | . 3 2 Detach 3 | . 3 . Swap 2 | . 2 . Drop 3 | . 3 . Fire 31 | . 28 3 Melee . | . . . Ram 6 | . . 6 Kick . | . . . Crush . | . . . Escape Stasis . | . . . Rewire . | . . . Trap . | . . . Miscellaneous . | . . . Route ------- -11/Scrapyard -10/Materials (discovered 4 exits: [*Mat x3] / *Min) -10/Mines History --------- Turn | Location | Event 18 | -11/Scrapyard | Discovered new exit (range 16) 53 | -11/Scrapyard | Entered Materials 118 | -10/Materials | Discovered new exit (range 16) 282 | -10/Materials | Discovered new exit (range 9) 324 | -10/Materials | Build established: Mutant 551 | -10/Materials | Discovered new exit (range 15) 627 | -10/Materials | Identified exit to Mines 657 | -10/Materials | Entered Mines 658 | -10/Mines | Assembled infested the area 663 | -10/Mines | Assisted by a Guerilla fighting off Assembled 670 | -10/Mines | Core integrity fell below 50% 677 | -10/Mines | Core integrity fell below 20% 688 | -10/Mines | Destroyed by D-53 Grenadier with Mini Grenade Launcher Last Messages --------------- 00674_ as-97130 destroyed. 00674_ as-49594 destroyed. 00675_ Com. Wheel destroyed. 00675_ as-21099 destroyed. 00675_ as-83663 destroyed. 00675_ G-34 Mercenary destroyed. 00675_ as-63324 destroyed. 00680_ as-71150 destroyed. 00680_ as-55437 destroyed. 00680_ as-30156 destroyed. 00680_ Com. Wheel destroyed. 00682_ as-55168 destroyed. 00683_ The unstable cave ceiling collapses. 00686_ Assault Rifle destroyed. 00686_ Lgt. Treads destroyed. 00686_ U-05 Engineer lays Concrete. 00687_ The unstable cave ceiling collapses. 00687_ U-05 Engineer lays Concrete. 00687_ U-05 Engineer builds a Wall. 00688_ U-05 Engineer lays Concrete. Map ----- +----------------------------------------------------+ | | | | | | | | | | | | | ?????????????????????????????????????????????????? | | ?????????????????????????????????????????????????? | | ?????????????????????????????????????????????????? | | ???????????????????###???????????????????????????? | | ?????????????#######"##??????????????????????????? | | ?????????????# ##?????????????????????????? | | ?????????????# % ##????????????????????????? | | ??????????????# %= % ##???????????????????????? | | ??????????????##=]*%% #???????????????????????? | | ???????????????##%%% ##???????????????????????? | | ???????????????## ###????????????????????????? | | ???????????????# # # #????????????????????????? | | ??????????????## # ##???????????????????????? | | ??????????????# ###????????? #??????????? | | ????????????#### g ##?????? #??????????? | | ????????????# d # ##?## #??????????? | | ????????????# d # #??????????? | | ????????????#"%# < #???????????? | | ????????????# "### #???????????? | | ????????????# ??# a@ ????????? | | ??????????? ??# u r ????????? | | ?????????? ??# # ###??????????? | | ?????????###???# ## #???????????? | | ???????????????# #### # #???????????? | | ???????????????# #???######## ##???????????? | | ???????????????# ???????????? #####????????????? | | ???????????????# ????????????? #????????????????? | | ??????????????? ??????????????#????????????????? | | ??????????????# ???????????????????????????????? | | ?????????????????????????????????????????????????? | | ?????????????????????????????????????????????????? | | ?????????????????????????????????????????????????? | | ?????????????????????????????????????????????????? | | ?????????????????????????????????????????????????? | | ?????????????????????????????????????????????????? | | ?????????????????????????????????????????????????? | | ?????????????????????????????????????????????????? | | ?????????????????????????????????????????????????? | | ?????????????????????????????????????????????????? | | ?????????????????????????????????????????????????? | | ?????????????????????????????????????????????????? | | ?????????????????????????????????????????????????? | | ?????????????????????????????????????????????????? | | ?????????????????????????????????????????????????? | +----------------------------------------------------+ Best States ------------- Heat Dissipation 25 Energy Generation 10 Energy Capacity 250 Matter Stores 300 Matter Capacity 300 Sight Range 16 Terrain Scan Density 10 Resistance: KI 20 Resistance: TH 20 Resistance: EX 20 Resistance: EM 20 Resistance: I 20 Resistance: S 20 Resistance: P 20 Evasion (%) 42 Offensive Hacking 10 Item Schematics ----------------- None Robot Schematics ------------------ None Fabricated ------------ Nothing Alien Tech Used ----------------- None Achievements -------------- None Challenges ------------ None Game ------ Seed GaussSmallCoupler Manual? 0 Play Time 00:11:40 Cumulative 79.6 hours Start 2020.10.17 @ 12:09:35 End 2020.10.17 @ 12:29:36 Sessions 1 Manual Loads 0 Difficulty Adventurer Special Mode None Game No. 10 Rogue 0 Adventurer 10 Explorer 0 Win Type - Total 2 Types 1/0/1/0/0/0/0/0/0 Lore% 46 Gallery% 50 Achievement% 48 Wizard Run 0 Options --------- ASCII 0 Keyboard 1 Movement Vi Keybinds 0 Fullscreen 1 Font 14/SmallcapsGlow Map View 84x54 Tactical HUD 1 Map Filters NONE Filters NONE Steam 1 RUN: ffaf098e-8b0b-4ba3-bdb0-2b26fe1c8519